Workbook

Sheet Start
B1: ABOUT THIS TEMPLATE
B2: Create a Business Start-up Financial Plan using this template.
B3: Get an overview of a financial plan in Overview worksheet.
B4: Use the Start-up Costs Template and P&L Template worksheets to keep account of Start-up Costs and Profit & Loss.
B5: Start-Up Costs Example and P&L Example worksheets contain sample data in tables.
B6: Note:
B7: Additional instructions have been provided in column A in all worksheets. This text has been intentionally hidden. To remove text, select column A, then select DELETE. To unhide text, select column A, then change font color.
B8: To learn more about tables, press SHIFT and then F10 within a table, select the TABLE option, and then select ALTERNATIVE TEXT.

Sheet Overview
A1: This worksheet provides an overview of business financial plan, estimating guidelines, and instructions on how to use the templates to calculate Start-up Costs and Profit or Loss. Title of the worksheet is in cell at right. Other helpful instructions on how to use this worksheet are in cells in this column. Arrow down to get started. | B1: BUSINESS START-UP FINANCIAL PLAN
A2: An overview of business plan is in cell at right. | B2: Creating a financial plan is where all of the business planning comes together. Once you have identified your product, the target market, and target customers, along with pricing, you are ready to begin forecasting costs, sales, and profit. These items along with your assumptions, will help you estimate your sales forecast. The other side of the business will be what expenses you expect to incur. This is important on an ongoing basis to see when you are profitable. It is also important as you start your business, to know what expenses you will need to fund before customer sales or the cash they generate is received.
A3: An overview of Projected Start-Up Costs is in cell at right. | B3: Projected Start-Up Costs: The table in the next tab, Start-Up Costs Template, provides a blank template with some instructions for getting started. The next tab, Start-Up Costs Example, shows a sample of ongoing and one-time cost items that you might need to open your business. Many businesses are paid on credit over time and don’t have cash coming in immediately. It is important to estimate when cash will begin to flow into the company by making an assumption about how many months of recurring items, in addition to one-time expense, you will have to fund out of savings or an initial investment.
A4: An overview of Projected Profit and Loss Model is in cell at right. | B4: Projected Profit and Loss Model: In the tab, label P&L Template, you will find a blank template to do Sales Forecasting and a Profit and Loss Model. The next tab, P&L Example, shows a sample of the projections a small business is forecasting for their first 12 months of operations. The top portion of the table in each model shows projected sales and gross profit. This is a good place to begin creating your sales forecast. The next section, below, itemizes the recurring expenses you are projecting for the same months. These should be consistent with the estimated start-up costs you completed in the prior section. At the bottom of this model, you will begin to see when you are becoming profitable and what expense items are the most impactful to your profitability.
A5: Few guidelines are in cell at right. | B5: Keep track of your assumptions that you make for estimating Revenues and Cost of Goods Sold. For businesses that have not begun to operate yet, you should have an understanding of how to estimate these for your product or service. Some estimating guidelines are below:
A6: Guidelines on estimating Revenues are in cell at right. | B6: Revenues: Begin by determining from your target market (the group of prospective customers, businesses or consumers) how many of these would be targets in the first year. What percentage of these do you expect to close? What is an average transaction for them to purchase your product or service? How many can you do in the first month, the second, and so on? You may want to start with a number in the first month and grow it by a percentage, say 10%. As an example, if you sell cleaning services to small businesses in your town and there are 500 businesses that you think need the service. If the average contract is for $250/month, then you need to estimate how many businesses you can sign to a contract in each month for the first year.
A7: Guidelines on estimating Costs of Goods Sold are in cell at right. | B7: Cost of Goods Sold (COGS): This should be calculated for products and some services. It is the included cost to produce the product. For instance, if you sell clothing, the COGS would be what price you paid to buy the clothing from a manufacturer. If you make them yourself, it would be the cost of the materials and labour to make them. For services, it would be the direct labour cost for an hour of billable work. Everything below Gross Profit on the P&L are fixed or overhead costs for the overall business, such as rent or telephone or even marketing.

Sheet Start-Up Costs Template
A1: This worksheet contains a template to calculate Start-up costs and Estimated Start-up Budget. Title of the worksheet is in cell at right. Other helpful instructions on how to use this worksheet are in cells in this column. Arrow down to get started. | B1: START-UP COSTS
A2: Business name is in cell at right and Date in cell C2. Next instruction is in cell A4. | B2: Your Coffee Shop | C2: =TODAY() -> 2018-06-26
A4: Enter details in Start Up table starting in cell at right to calculate the Estimated Start-up Budget. | B4: COST ITEMS | C4: MONTHS | D4: COST/ MONTH | E4: ONE-TIME COST | F4: TOTAL COST
B5: Advertising/Marketing | F5: =(C5*D5)+IF(E5>0,E5,0) -> $0
B6: Employee Salaries | F6: =(C6*D6)+IF(E6>0,E6,0) -> $0
B7: Employee Payroll Taxes and Benefits | F7: $0
B8: Rent/Lease Payments/Utilities | F8: $0
B9: Postage/Shipping | F9: $0
B10: ESTIMATED START-UP BUDGET | F10: =SUBTOTAL(109,StartUp[TOTAL COST]) -> 0

Sheet Start-Up Costs Example
A1: This worksheet contains sample data in the template from previous worksheet. Title of the worksheet is in cell at right. Other helpful instructions on how to use this worksheet are in cells in this column. Arrow down to get started. | B1: START-UP COSTS
A2: Business name is in cell at right and Date in cell C2. Next instruction is in cell A4. | B2: ='Start-Up Costs Template'!B2 -> Your Coffee Shop | C2: =TODAY() -> 2018-06-26
A4: Cost Items, Months, Cost per Month, and One-time Cost are in Start Up table starting in cell at right. Total Cost and Estimated Start-up Budget are auto calculated. | B4: COST ITEMS | C4: MONTHS | D4: COST/ MONTH | E4: ONE-TIME COST | F4: TOTAL COST
B5: Advertising/Marketing | C5: 3 | D5: $300 | E5: $2,000 | F5: =(C5*D5)+IF(E5>0,E5,0) -> $2,900
B6: Employee Salaries | C6: 4 | D6: $3,500 | E6: $2 | F6: =(C6*D6)+IF(E6>0,E6,0) -> $14,002
B7: Employee Payroll Taxes and Benefits | C7: 4 | D7: $500 | E7: $2,000 | F7: $4,000
B8: Rent/Lease Payments/Utilities | C8: 4 | D8: $750 | E8: $3,000 | F8: $6,000
B9: Postage/Shipping | C9: 1 | D9: $25 | E9: $25 | F9: $50
B10: ESTIMATED START-UP BUDGET | F10: =SUM(F6:F9) -> $24,052

Sheet P&L Template
A1: This worksheet contains a template to calculate Total Expenses and Net Income. Title of the worksheet is in cell at right. Other helpful instructions on how to use this worksheet are in cells in this column. Arrow down to get started. | B1: START-UP COSTS
A2: Business name is in cell at right and Date in cell C2. Next instruction is in cell A4. | B2: ='Start-Up Costs Template'!B2 -> Your Coffee Shop | C2: =TODAY() -> 2018-06-26
A4: Enter details in Sample Revenue table starting in cell at right to calculate Net Sales, Costs of Goods Sold and Gross Profit. Next instruction is in cell A10. | B4: REVENUE | C4: JAN | D4: FEB | E4: MAR | F4: APR | G4: MAY | H4: JUN | I4: JUL | J4: AUG | K4: SEP | L4: OCT | M4: NOV | N4: DEC | O4: YTD
B5: Estimated Product Sales | C5: $0 | D5: $0 | E5: $0 | F5: $0 | G5: $0 | H5: $0 | I5: $0 | J5: $0 | K5: $0 | L5: $0 | M5: $0 | N5: $0 | O5: =SUM(C5:N5) -> $0
B6: Less Sales Returns & Discounts | C6: $0 | D6: $0 | E6: $0 | F6: $0 | G6: $0 | H6: $0 | I6: $0 | J6: $0 | K6: $0 | L6: $0 | M6: $0 | N6: $0 | O6: =SUM(C6:N6) -> $0
B7: Service Revenue | C7: $0 | D7: $0 | E7: $0 | F7: $0 | G7: $0 | H7: $0 | I7: $0 | J7: $0 | K7: $0 | L7: $0 | M7: $0 | N7: $0 | O7: $0
B8: Other Revenue | C8: $0 | D8: $0 | E8: $0 | F8: $0 | G8: $0 | H8: $0 | I8: $0 | J8: $0 | K8: $0 | L8: $0 | M8: $0 | N8: $0 | O8: $0
B9: Net Sales | C9: =SUBTOTAL(109,SampleRevenue[JAN]) -> $0 | D9: =SUBTOTAL(109,SampleRevenue[FEB]) -> $0 | E9: =SUBTOTAL(109,SampleRevenue[MAR]) -> $0 | F9: =SUBTOTAL(109,SampleRevenue[APR]) -> $0 | G9: =SUBTOTAL(109,SampleRevenue[MAY]) -> $0 | H9: =SUBTOTAL(109,SampleRevenue[JUN]) -> $0 | I9: =SUBTOTAL(109,SampleRevenue[JUL]) -> $0 | J9: =SUBTOTAL(109,SampleRevenue[AUG]) -> $0 | K9: =SUBTOTAL(109,SampleRevenue[SEP]) -> $0 | L9: =SUBTOTAL(109,SampleRevenue[OCT]) -> $0 | M9: =SUBTOTAL(109,SampleRevenue[NOV]) -> $0 | N9: =SUBTOTAL(109,SampleRevenue[DEC]) -> $0 | O9: =SUM(SampleRevenue[[#Totals],[JAN]:[DEC]]) -> $0
A10: Cost of Goods Sold label is in cell at right. Cost of Goods Sold for each month and Year to Date are auto calculated in cells C10 through O10. | B10: Cost of Goods Sold | C10: =C5*0.4 -> $0 | D10: $0 | E10: $0 | F10: $0 | G10: $0 | H10: $0 | I10: $0 | J10: $0 | K10: $0 | L10: $0 | M10: $0 | N10: $0 | O10: $0
A11: Gross Profit label is in cell at right. Gross Profit for each month and Year to Date are auto calculated in cells C11 through O11. Next instruction is in cell A13. | B11: Gross Profit | C11: =IFERROR(SampleRevenue[[#Totals],[JAN]]-C10,"") -> $0 | D11: =IFERROR(SampleRevenue[[#Totals],[FEB]]-D10,"") -> $0 | E11: =IFERROR(SampleRevenue[[#Totals],[MAR]]-E10,"") -> $0 | F11: =IFERROR(SampleRevenue[[#Totals],[APR]]-F10,"") -> $0 | G11: =IFERROR(SampleRevenue[[#Totals],[MAY]]-G10,"") -> $0 | H11: =IFERROR(SampleRevenue[[#Totals],[JUN]]-H10,"") -> $0 | I11: =IFERROR(SampleRevenue[[#Totals],[JUL]]-I10,"") -> $0 | J11: =IFERROR(SampleRevenue[[#Totals],[AUG]]-J10,"") -> $0 | K11: =IFERROR(SampleRevenue[[#Totals],[SEP]]-K10,"") -> $0 | L11: =IFERROR(SampleRevenue[[#Totals],[OCT]]-L10,"") -> $0 | M11: =IFERROR(SampleRevenue[[#Totals],[NOV]]-M10,"") -> $0 | N11: =IFERROR(SampleRevenue[[#Totals],[DEC]]-N10,"") -> $0 | O11: $0
A13: Enter details in Sample Expenses table starting in cell at right to calculate Total Expenses, Income Before Taxes and Income Tax Expense. Next instruction is in cell A20. | B13: EXPENSES | C13: JAN | D13: FEB | E13: MAR | F13: APR | G13: MAY | H13: JUN | I13: JUL | J13: AUG | K13: SEP | L13: OCT | M13: NOV | N13: DEC | O13: YTD
B14: Salaries & Wages | C14: $0 | D14: $0 | E14: $0 | F14: $0 | G14: $0 | H14: $0 | I14: $0 | J14: $0 | K14: $0 | L14: $0 | M14: $0 | N14: $0 | O14: =SUM(C14:N14) -> $0
B15: Marketing/Advertising | C15: $0 | D15: $0 | E15: $0 | F15: $0 | G15: $0 | H15: $0 | I15: $0 | J15: $0 | K15: $0 | L15: $0 | M15: $0 | N15: $0 | O15: =SUM(C15:N15) -> $0
B16: Sales Commissions | C16: $0 | D16: $0 | E16: $0 | F16: $0 | G16: $0 | H16: $0 | I16: $0 | J16: $0 | K16: $0 | L16: $0 | M16: $0 | N16: $0 | O16: $0
B17: Rent | C17: $0 | D17: $0 | E17: $0 | F17: $0 | G17: $0 | H17: $0 | I17: $0 | J17: $0 | K17: $0 | L17: $0 | M17: $0 | N17: $0 | O17: $0
B18: Other 1 | C18: $0 | D18: $0 | E18: $0 | F18: $0 | G18: $0 | H18: $0 | I18: $0 | J18: $0 | K18: $0 | L18: $0 | M18: $0 | N18: $0 | O18: $0
B19: Total Expenses | C19: =IF(SUM(C14:C18)=0,"",SUM(C14:C18)) ->  | O19: =SUM(SampleExpenses[[#Totals],[JAN]:[DEC]]) -> $0
A20: Income Before Taxes label is in cell at right. Income Before Taxes for each month and Year to Date are auto calculated in cells C20 through O20. | B20: Income Before Taxes | C20: =IFERROR('P&L Template'!$C$11-SampleExpenses[[#Totals],[JAN]],"") ->  | D20: =IFERROR('P&L Template'!$C$11-SampleExpenses[[#Totals],[FEB]],"") ->  | E20: =IFERROR('P&L Template'!$C$11-SampleExpenses[[#Totals],[MAR]],"") ->  | F20: =IFERROR('P&L Template'!$C$11-SampleExpenses[[#Totals],[APR]],"") ->  | G20: =IFERROR('P&L Template'!$C$11-SampleExpenses[[#Totals],[MAY]],"") ->  | H20: =IFERROR('P&L Template'!$C$11-SampleExpenses[[#Totals],[JUN]],"") ->  | I20: =IFERROR('P&L Template'!$C$11-SampleExpenses[[#Totals],[JUL]],"") ->  | J20: =IFERROR('P&L Template'!$C$11-SampleExpenses[[#Totals],[AUG]],"") ->  | K20: =IFERROR('P&L Template'!$C$11-SampleExpenses[[#Totals],[SEP]],"") ->  | L20: =IFERROR('P&L Template'!$C$11-SampleExpenses[[#Totals],[OCT]],"") ->  | M20: =IFERROR('P&L Template'!$C$11-SampleExpenses[[#Totals],[NOV]],"") ->  | N20: =IFERROR('P&L Template'!$C$11-SampleExpenses[[#Totals],[DEC]],"") ->  | O20: $0
A21: Income Tax Expense label is in cell at right. Income Tax Expense for each month and Year to Date are auto calculated in cells C21 through O21. Next instruction is in cell A23. | B21: Income Tax Expense | C21: =IFERROR(C20*0.15," ") ->  | D21: =IFERROR(D20*0.15," ") ->  | E21: =IFERROR(E20*0.15," ") ->  | O21: =SUM('P&L Template'!$C$21:$N$21) -> $0
A23: Net Income label is in cell at right. Net Income for each month and Year to Date are auto calculated in cells C23 through O23. | B23: NET INCOME | C23: =IFERROR(C20-'P&L Template'!$C$21,"") ->  | D23: =IFERROR(D20-'P&L Template'!$D$21,"") ->  | E23: =IFERROR(E20-'P&L Template'!$E$21,"") ->  | F23: =IFERROR(F20-'P&L Template'!$F$21,"") ->  | G23: =IFERROR(G20-'P&L Template'!$G$21,"") ->  | H23: =IFERROR(H20-'P&L Template'!$H$21,"") ->  | I23: =IFERROR(I20-'P&L Template'!$I$21,"") ->  | J23: =IFERROR(J20-'P&L Template'!$J$21,"") ->  | K23: =IFERROR(K20-'P&L Template'!$K$21,"") ->  | L23: =IFERROR(L20-'P&L Template'!$L$21,"") ->  | M23: =IFERROR(M20-'P&L Template'!$M$21,"") ->  | N23: =IFERROR(N20-'P&L Template'!$N$21,"") ->  | O23: =IFERROR(O20-'P&L Template'!$O$21,"") -> $0
A24: Net Income label is in cell at right. Net Income for each month and Year to Date are auto calculated in cells C25 through O25.

Sheet P&L Example
A1: This worksheet contains sample data in the template from previous worksheet. Title of the worksheet is in cell at right. Other helpful instructions on how to use this worksheet are in cells in this column. Arrow down to get started. | B1: START-UP COSTS
A2: Business name is in cell at right and Date in cell C2. Next instruction is in cell A4. | B2: ='Start-Up Costs Template'!B2 -> Your Coffee Shop | C2: =TODAY() -> 2018-06-26
A4: Revenue items with values for each month are in Actual Revenue table starting in cell at right. Net Sales for each month, and Year to Date are auto calculated. Next instruction is in cell A10. | B4: REVENUE | C4: JAN | D4: FEB | E4: MAR | F4: APR | G4: MAY | H4: JUN | I4: JUL | J4: AUG | K4: SEP | L4: OCT | M4: NOV | N4: DEC | O4: YTD
B5: Estimated Product Sales | C5: $5,000 | D5: $13,000 | E5: $16,000 | F5: $7,000 | G5: $14,500 | H5: $16,400 | I5: $22,500 | J5: $23,125 | K5: $24,549 | L5: $22,000 | M5: $25,000 | N5: $27,349 | O5: =SUM(C5:N5) -> $216,423
B6: Less Sales Returns & Discounts | C6: $0 | D6: ($350) | E6: $0 | F6: ($206) | G6: ($234) | H6: $0 | I6: $0 | J6: ($280) | K6: ($1,200) | L6: ($1,600) | M6: $0 | N6: ($2,400) | O6: =SUM(C6:N6) -> ($6,270)
B7: Service Revenue | C7: $0 | D7: $0 | E7: $0 | F7: $0 | G7: $0 | H7: $250 | I7: $350 | J7: $100 | K7: $0 | L7: $0 | M7: $1,245 | N7: $1,360 | O7: $3,305
B8: Other Revenue | C8: $0 | D8: $0 | E8: $0 | F8: $0 | G8: $0 | H8: $0 | I8: $0 | J8: $1,500 | K8: $0 | L8: $0 | M8: $0 | N8: $0 | O8: $1,500
B9: Net Sales | C9: =SUBTOTAL(109,ActualRevenue[JAN]) -> $5,000 | D9: =SUBTOTAL(109,ActualRevenue[FEB]) -> $12,650 | E9: =SUBTOTAL(109,ActualRevenue[MAR]) -> $16,000 | F9: =SUBTOTAL(109,ActualRevenue[APR]) -> $6,794 | G9: =SUBTOTAL(109,ActualRevenue[MAY]) -> $14,266 | H9: =SUBTOTAL(109,ActualRevenue[JUN]) -> $16,650 | I9: =SUBTOTAL(109,ActualRevenue[JUL]) -> $22,850 | J9: =SUBTOTAL(109,ActualRevenue[AUG]) -> $24,445 | K9: =SUBTOTAL(109,ActualRevenue[SEP]) -> $23,349 | L9: =SUBTOTAL(109,ActualRevenue[OCT]) -> $20,400 | M9: =SUBTOTAL(109,ActualRevenue[NOV]) -> $26,245 | N9: =SUBTOTAL(109,ActualRevenue[DEC]) -> $26,309 | O9: =SUM(ActualRevenue[[#Totals],[JAN]:[DEC]]) -> $214,958
A10: Cost of Goods Sold label is in cell at right. Cost of Goods Sold for each month and Year to Date are auto calculated in cells C10 through O10. | B10: Cost of Goods Sold | C10: =C5*0.4 -> $2,000 | D10: $5,200 | E10: $6,400 | F10: $2,800 | G10: $5,800 | H10: $6,560 | I10: $9,000 | J10: $9,250 | K10: $9,820 | L10: $8,800 | M10: $10,000 | N10: $10,940 | O10: $86,569
A11: Gross Profit label is in cell at right. Gross Profit for each month and Year to Date are auto calculated in cells C11 through O11. Next instruction is in cell A13. | B11: Gross Profit | C11: =IFERROR(ActualRevenue[[#Totals],[JAN]]-C10,"") -> $3,000 | D11: =IFERROR(ActualRevenue[[#Totals],[FEB]]-D10,"") -> $7,450 | E11: =IFERROR(ActualRevenue[[#Totals],[MAR]]-E10,"") -> $9,600 | F11: =IFERROR(ActualRevenue[[#Totals],[APR]]-F10,"") -> $3,994 | G11: =IFERROR(ActualRevenue[[#Totals],[MAY]]-G10,"") -> $8,466 | H11: =IFERROR(ActualRevenue[[#Totals],[JUN]]-H10,"") -> $10,090 | I11: =IFERROR(ActualRevenue[[#Totals],[JUL]]-I10,"") -> $13,850 | J11: =IFERROR(ActualRevenue[[#Totals],[AUG]]-J10,"") -> $15,195 | K11: =IFERROR(ActualRevenue[[#Totals],[SEP]]-K10,"") -> $13,529 | L11: =IFERROR(ActualRevenue[[#Totals],[OCT]]-L10,"") -> $11,600 | M11: =IFERROR(ActualRevenue[[#Totals],[NOV]]-M10,"") -> $16,245 | N11: =IFERROR(ActualRevenue[[#Totals],[DEC]]-N10,"") -> $15,369 | O11: $128,389
A13: Expenses items with values for each month are in Actual Expenses table starting in cell at right. Year to Date, and Total Expenses are auto calculated. Next instruction is in cell A19. | B13: EXPENSES | C13: JAN | D13: FEB | E13: MAR | F13: APR | G13: MAY | H13: JUN | I13: JUL | J13: AUG | K13: SEP | L13: OCT | M13: NOV | N13: DEC | O13: YTD
B14: Salaries & Wages | C14: $2,500 | D14: $2,500 | E14: $3,500 | F14: $5,000 | G14: $5,000 | H14: $5,000 | I14: $8,000 | J14: $9,000 | K14: $9,000 | L14: $9,000 | M14: $9,000 | N14: $9,000 | O14: =SUM(C14:N14) -> $76,500
B15: Marketing/Advertising | C15: $400 | D15: $450 | E15: $450 | F15: $450 | G15: $900 | H15: $900 | I15: $900 | J15: $900 | K15: $900 | L15: $900 | M15: $1,200 | N15: $1,200 | O15: =SUM(C15:N15) -> $9,550
B16: Sales Commissions | C16: $250 | D16: $650 | E16: $800 | F16: $350 | G16: $725 | H16: $820 | I16: $1,125 | J16: $1,156 | K16: $1,227 | L16: $1,100 | M16: $1,250 | N16: $1,367 | O16: $10,821
B17: Rent | C17: $1,250 | D17: $1,250 | E17: $1,250 | F17: $1,250 | G17: $1,250 | H17: $1,250 | I17: $1,250 | J17: $1,250 | K17: $1,250 | L17: $1,250 | M17: $1,250 | N17: $1,250 | O17: $15,000
B18: Total Expenses | C18: =IF(SUM(C14:C17)=0,"",SUM(C14:C17)) -> $4,400 | D18: $4,850 | E18: $6,000 | F18: $7,050 | G18: $7,875 | H18: $7,970 | I18: $11,275 | J18: $12,306 | K18: $12,377 | L18: $12,250 | M18: $12,700 | N18: $12,817 | O18: =SUM(ActualExpenses[[#Totals],[JAN]:[DEC]]) -> $111,871
A19: Income Before Taxes label is in cell at right. Income Before Taxes for each month and Year to Date are auto calculated in cells C19 through O19. | B19: Income Before Taxes | C19: =IFERROR('P&L Example'!$C$11-ActualExpenses[[#Totals],[JAN]],"") -> ($1,400) | D19: =IFERROR('P&L Example'!$D$11-ActualExpenses[[#Totals],[FEB]],"") -> $2,600 | E19: =IFERROR('P&L Example'!$E$11-ActualExpenses[[#Totals],[MAR]],"") -> $3,600 | F19: =IFERROR('P&L Example'!$F$11-ActualExpenses[[#Totals],[APR]],"") -> ($3,056) | G19: =IFERROR('P&L Example'!$G$11-ActualExpenses[[#Totals],[MAY]],"") -> $591 | H19: =IFERROR('P&L Example'!$H$11-ActualExpenses[[#Totals],[JUN]],"") -> $2,120 | I19: =IFERROR('P&L Example'!$I$11-ActualExpenses[[#Totals],[JUL]],"") -> $2,575 | J19: =IFERROR('P&L Example'!$J$11-ActualExpenses[[#Totals],[AUG]],"") -> $2,889 | K19: =IFERROR('P&L Example'!$K$11-ActualExpenses[[#Totals],[SEP]],"") -> $1,152 | L19: =IFERROR('P&L Example'!$L$11-ActualExpenses[[#Totals],[OCT]],"") -> ($650) | M19: =IFERROR('P&L Example'!$M$11-ActualExpenses[[#Totals],[NOV]],"") -> $3,545 | N19: =IFERROR('P&L Example'!$N$11-ActualExpenses[[#Totals],[DEC]],"") -> $2,552 | O19: =SUM(C19:N19) -> $16,518
A20: Income Tax Expense label is in cell at right. Income Tax Expense for each month and Year to Date are auto calculated in cells C20 through O20. Next instruction is in cell A22. | B20: Income Tax Expense | C20: =C19*0.15 -> ($210) | D20: $390 | E20: =E19*0.15 -> $540 | F20: =F19*0.15 -> ($458) | G20: =G19*0.15 -> $89 | H20: =H19*0.15 -> $318 | I20: =I19*0.15 -> $386 | J20: =J19*0.15 -> $433 | K20: =K19*0.15 -> $173 | L20: =L19*0.15 -> ($98) | M20: =M19*0.15 -> $532 | N20: =N19*0.15 -> $383 | O20: =SUM('P&L Example'!$C$20:$N$20) -> $2,478
A22: Net Income label is in cell at right. Net Income for each month and Year to Date are auto calculated in cells C22 through O22. | B22: NET INCOME | C22: =IFERROR(C19-'P&L Example'!$C$20," ") -> ($1,190) | D22: =IFERROR(D19-'P&L Example'!$D$20," ") -> $2,210 | E22: =IFERROR(E19-'P&L Example'!$E$20,"") -> $3,060 | F22: =IFERROR(F19-'P&L Example'!$F$20,"") -> ($2,598) | G22: =IFERROR(G19-'P&L Example'!$G$20,"") -> $502 | H22: =IFERROR(H19-'P&L Example'!$H$20,"") -> $1,802 | I22: =IFERROR(I19-'P&L Example'!$I$20,"") -> $2,189 | J22: =IFERROR(J19-'P&L Example'!$J$20,"") -> $2,455 | K22: =IFERROR(K19-'P&L Example'!$K$20,"") -> $979 | L22: =IFERROR(L19-'P&L Example'!$L$20,"") -> ($553) | M22: =IFERROR(M19-'P&L Example'!$M$20,"") -> $3,013 | N22: =IFERROR(N19-'P&L Example'!$N$20,"") -> $2,169 | O22: =IFERROR(O19-'P&L Example'!$O$20,"") -> $14,040
